bitfinex-derivatives/quotes_BTCF0:USTF0_20250322
["timestamp","ask_amount","ask_price","bid_price","bid_amount"]
[1742647042990,0.03242,84246.0,84245.0,0.2327465]
[1742647043191,0.03242,84246.0,84245.0,0.2321465]
[1742647043394,0.03242,84246.0,84245.0,0.2947465]
[1742647044498,0.03242,84246.0,84245.0,0.30668896]
[1742647044900,0.0315,84246.0,84245.0,0.30668896]
[1742647045103,0.09692,84246.0,84245.0,0.30668896]
[1742647045893,0.096,84246.0,84245.0,0.30668896]
[1742647046092,0.0645,84246.0,84245.0,0.30668896]
[1742647048095,0.0307,84250.0,84249.0,0.1187408]
[1742647048301,0.03166001,84250.0,84249.0,0.1193808]
[1742647048800,0.00096001,84250.0,84249.0,0.1193808]
[1742647049001,0.00096001,84250.0,84249.0,0.1851808]
[1742647051698,0.03216001,84250.0,84249.0,0.1851808]
[1742647052911,0.15089941,84250.0,84249.0,0.1851808]
[1742647053209,0.18309941,84250.0,84249.0,0.1851808]
[1742647054798,0.18209941,84250.0,84249.0,0.1851808]
[1742647055503,0.06336001,84250.0,84249.0,0.1851808]
[1742647055809,0.18209941,84250.0,84249.0,0.1851808]
[1742647064517,0.03216001,84250.0,84249.0,0.1851808]
[1742647071012,0.04166059,84250.0,84249.0,0.1851808]
[1742647071924,0.03216001,84250.0,84249.0,0.1851808]
[1742647074532,0.15089941,84250.0,84249.0,0.1851808]
[1742647076321,0.15089941,84250.0,84249.0,0.39895933]
[1742647077721,0.18389941,84250.0,84249.0,0.39895933]
[1742647079326,0.18389941,84250.0,84249.0,0.47869933]
[1742647079527,0.1829394,84250.0,84249.0,0.47869933]
[1742647079932,0.1829394,84250.0,84249.0,0.2649208]
[1742647080137,0.1839394,84250.0,84249.0,0.2649208]
[1742647087551,0.1839394,84250.0,84249.0,0.2962208]
[1742647088653,0.1839394,84250.0,84249.0,0.2649208]
[1742647088853,0.1839394,84250.0,84249.0,0.2962208]
[1742647090557,0.0322,84250.0,84249.0,0.2962208]
[1742647090745,0.1509394,84250.0,84249.0,0.2962208]
[1742647091853,0.0322,84250.0,84249.0,0.2962208]
[1742647092558,0.1509394,84250.0,84249.0,0.2962208]
[1742647092758,0.0322,84250.0,84249.0,0.2962208]
[1742647095161,0.1509394,84250.0,84249.0,0.2962208]
[1742647096255,0.0322,84250.0,84249.0,0.2962208]
[1742647096558,0.1499394,84250.0,84249.0,0.2962208]
[1742647096759,0.15089941,84250.0,84249.0,0.2962208]
[1742647097060,0.03216001,84250.0,84249.0,0.2962208]
[1742647097459,0.0312,84250.0,84249.0,0.3271208]
[1742647097961,0.0322,84250.0,84249.0,0.3271208]
[1742647098762,0.0312,84250.0,84249.0,0.3271208]
[1742647098962,0.00017801,84254.0,84253.0,0.1187352]
[1742647099162,0.00117801,84254.0,84253.0,0.1194152]
[1742647100356,0.00117801,84254.0,84253.0,0.1510152]
[1742647102755,0.00117801,84254.0,84253.0,0.2634552]
[1742647105859,0.00117801,84254.0,84253.0,0.2953552]
[1742647107063,0.00117801,84254.0,84253.0,0.50893809]
[1742647108668,0.00017801,84254.0,84253.0,0.50893809]
[1742647110474,0.00017801,84254.0,84253.0,0.2953552]
[1742647112671,0.00017801,84254.0,84253.0,0.1829152]
[1742647112871,0.00017801,84254.0,84253.0,0.2953552]
[1742647113770,0.03107801,84254.0,84253.0,0.2953552]
[1742647115066,0.03203802,84254.0,84253.0,0.2953552]
[1742647115265,0.06343802,84254.0,84253.0,0.2953552]
[1742647122478,0.06343802,84254.0,84253.0,0.50893809]
[1742647125482,0.06247801,84254.0,84253.0,0.50893809]
[1742647125684,0.06339801,84254.0,84253.0,0.50893809]
[1742647129477,0.00109801,84254.0,84253.0,0.86973809]
[1742647129674,0.00017801,84254.0,84253.0,0.6561552]
[1742647130279,0.00017801,84254.0,84253.0,0.2953552]
[1742647131686,0.00017801,84254.0,84253.0,0.5353552]
[1742647133483,0.0593555,84271.0,84266.0,0.1187169]
[1742647133676,0.3608,84280.0,84266.0,0.2321169]
[1742647133677,0.1197155,84267.0,84266.0,0.2321169]
[1742647134486,0.001,84267.0,84266.0,0.2321169]
[1742647134685,0.033,84267.0,84266.0,0.2321169]
[1742647134889,0.0656,84267.0,84266.0,0.1500769]
[1742647135075,0.1843155,84267.0,84266.0,0.2624769]
[1742647135280,0.2189155,84267.0,84266.0,0.2624769]
[1742647135878,0.2209155,84267.0,84266.0,0.2624769]
[1742647136683,0.2209155,84267.0,84266.0,0.27415816]
[1742647137093,0.2189155,84267.0,84266.0,0.27415816]
[1742647137595,0.2169155,84267.0,84266.0,0.27415816]
[1742647138993,0.2169155,84267.0,84266.0,0.28308058]
[1742647139984,0.0982,84267.0,84266.0,0.28308058]
[1742647140484,0.2169155,84267.0,84266.0,0.28308058]
[1742647141297,0.0982,84267.0,84266.0,0.28308058]
[1742647144893,0.0972,84267.0,84266.0,0.28308058]
[1742647151398,0.2159155,84267.0,84266.0,0.11336]
[1742647151703,0.2168355,84267.0,84266.0,0.11336]
[1742647151898,0.1187225,84262.0,84261.0,0.32598847]
[1742647152108,0.4923334,84262.0,84261.0,0.27668847]
[1742647152298,0.4923334,84262.0,84261.0,0.16428847]
[1742647152601,0.61100452,84262.0,84261.0,0.16428847]
[1742647152907,0.67290452,84262.0,84261.0,0.16428847]
[1742647154900,0.66129363,84262.0,84261.0,0.16428847]
[1742647155807,0.66129363,84262.0,84261.0,0.0006]
[1742647156105,0.1187239,84261.0,84260.0,8e-05]
[1742647156404,0.12012391,84261.0,84260.0,8e-05]
[1742647156607,0.1187267,84259.0,84258.0,0.00017801]
[1742647156810,0.12012671,84259.0,84258.0,0.00157801]
[1742647157000,0.12012671,84259.0,84258.0,0.00017801]
[1742647157507,0.23880628,84259.0,84258.0,0.00077801]
[1742647157709,0.23880628,84259.0,84258.0,0.00017801]
[1742647158009,0.23880628,84259.0,84258.0,0.00077801]
[1742647160808,0.23980628,84259.0,84258.0,0.00077801]
[1742647162009,0.23980628,84259.0,84258.0,0.03377801]
[1742647162412,0.60060628,84259.0,84258.0,0.03377801]
[1742647163108,0.59960628,84259.0,84258.0,0.03377801]
[1742647167007,0.48092671,84259.0,84258.0,0.15250611]
[1742647167408,0.48092671,84259.0,84258.0,0.03377801]
[1742647169005,0.48092671,84259.0,84258.0,0.15250611]
[1742647169205,0.48092671,84259.0,84258.0,0.03377801]
[1742647172317,0.12012671,84259.0,84258.0,0.03377801]
[1742647172520,0.48092671,84259.0,84258.0,0.03377801]
[1742647173421,0.48092671,84259.0,84258.0,0.06497801]
[1742647176725,0.54462671,84259.0,84258.0,0.06497801]
[1742647185421,0.18382671,84259.0,84258.0,0.06497801]
[1742647185623,0.54462671,84259.0,84258.0,0.06497801]
[1742647188336,0.18382671,84259.0,84258.0,0.06497801]
[1742647188528,0.54462671,84259.0,84258.0,0.06497801]
[1742647192339,0.18382671,84259.0,84258.0,0.06497801]
[1742647192531,0.54462671,84259.0,84258.0,0.06497801]
[1742647205341,0.18382671,84259.0,84258.0,0.06497801]
[1742647205541,0.54462671,84259.0,84258.0,0.06497801]
[1742647209449,0.54462671,84259.0,84258.0,0.06437801]
[1742647210543,0.54462671,84259.0,84258.0,0.06505801]
[1742647212142,0.18382671,84259.0,84258.0,0.06505801]
[1742647212351,0.66330909,84259.0,84258.0,0.06505801]
[1742647212555,0.1187338,84254.0,84253.0,0.11252]
[1742647212849,0.1187338,84254.0,84245.0,0.28478463]
[1742647212850,0.1187422,84248.0,84247.0,0.0325]
[1742647213053,0.4809822,84248.0,84247.0,0.0325]
[1742647213247,0.4809822,84248.0,84247.0,0.0331]
[1742647213447,0.48094221,84248.0,84247.0,0.0331]
[1742647213648,0.55911436,84248.0,84247.0,0.0331]
[1742647214150,0.67781224,84248.0,84247.0,0.0331]
[1742647217748,0.67781224,84248.0,84247.0,0.0643]
[1742647224464,0.67781224,84248.0,84247.0,0.0637]
[1742647224859,0.67781224,84248.0,84247.0,0.06438]
[1742647226968,0.67781224,84248.0,84247.0,0.0637]
[1742647227270,0.67781224,84248.0,84247.0,0.06434]
[1742647231158,0.67781224,84248.0,84247.0,0.0637]
[1742647231771,0.67781224,84248.0,84247.0,0.0643]
[1742647233262,0.31701224,84248.0,84247.0,0.0643]
[1742647233463,0.67781224,84248.0,84247.0,0.0643]
[1742647245476,0.31701224,84248.0,84247.0,0.0643]
[1742647245780,0.67781224,84248.0,84247.0,0.0643]
[1742647251076,0.67781224,84248.0,84247.0,0.0637]
[1742647251276,0.67781224,84248.0,84247.0,0.06434]
[1742647254789,0.31701224,84248.0,84247.0,0.06434]
[1742647255187,0.67781224,84248.0,84247.0,0.06434]
[1742647270303,0.31701224,84248.0,84247.0,0.06434]
[1742647270504,0.67781224,84248.0,84247.0,0.06434]
[1742647271414,0.31701224,84248.0,84247.0,0.06434]
[1742647271713,0.67781224,84248.0,84247.0,0.06434]
[1742647272413,0.31701224,84248.0,84247.0,0.06434]
[1742647272614,0.67781224,84248.0,84247.0,0.06434]
[1742647291545,0.2723357,84251.0,84250.0,0.1187394]
[1742647291744,0.119738,84251.0,84250.0,0.2319394]
[1742647292427,0.119738,84251.0,84250.0,0.2939394]
[1742647292937,0.120738,84251.0,84250.0,0.2939394]
[1742647294540,0.120738,84251.0,84250.0,0.30572632]
[1742647295533,0.119738,84251.0,84250.0,0.30572632]
[1742647298851,0.150238,84251.0,84250.0,0.30572632]
[1742647303849,0.119738,84251.0,84250.0,0.30572632]
[1742647307547,0.181138,84251.0,84250.0,0.30572632]
[1742647327175,0.181138,84251.0,84250.0,0.2939394]
[1742647327870,0.181138,84251.0,84250.0,0.50769594]
[1742647328266,0.181138,84251.0,84250.0,0.21439654]
[1742647328574,0.181138,84251.0,84250.0,0.32683654]
[1742647329667,0.181138,84251.0,84250.0,0.38873654]
[1742647331279,0.181138,84251.0,84250.0,0.17498]
[1742647337270,0.181138,84251.0,84250.0,0.2937194]
[1742647339875,0.181138,84251.0,84250.0,0.17498]
[1742647340479,0.181138,84251.0,84250.0,0.2937194]
[1742647341475,0.181138,84251.0,84250.0,0.17498]
[1742647342382,0.181138,84251.0,84250.0,0.2937194]
[1742647342973,0.181138,84251.0,84250.0,0.17498]
[1742647344584,0.181138,84251.0,84250.0,0.2937194]
[1742647348282,0.119738,84251.0,84250.0,0.2937194]
[1742647348484,0.118738,84251.0,84250.0,0.2937194]
[1742647349186,0.183138,84251.0,84250.0,0.2937194]
[1742647351074,0.18409801,84251.0,84250.0,0.2937194]
[1742647351887,0.184138,84251.0,84250.0,0.2937194]
[1742647359189,0.184138,84251.0,84250.0,0.17498]
[1742647360994,0.184138,84251.0,84250.0,0.2937194]
[1742647361594,0.184138,84251.0,84250.0,0.17498]
[1742647369392,0.184138,84251.0,84250.0,0.2937194]
[1742647369594,0.184138,84251.0,84250.0,0.17498]
[1742647375608,0.184138,84251.0,84250.0,0.45976463]
[1742647375805,0.183138,84251.0,84250.0,0.45976463]
[1742647376307,0.18409801,84251.0,84250.0,0.45976463]
[1742647378311,0.18409801,84251.0,84250.0,0.38872274]
[1742647388015,0.18409801,84251.0,84250.0,0.17498]
[1742647391507,0.18409801,84251.0,84250.0,0.2937194]
[1742647396418,0.18409801,84251.0,84250.0,0.50746214]
[1742647406726,0.18409801,84251.0,84250.0,0.2937194]
[1742647410426,0.18409801,84251.0,84250.0,0.3086977]
[1742647412327,0.18409801,84251.0,84250.0,0.1899583]
[1742647414019,0.18409801,84251.0,84250.0,0.3086977]
[1742647416325,0.18409801,84251.0,84250.0,0.2937194]
[1742647471392,0.18409801,84251.0,84250.0,0.17498]
[1742647472186,0.18409801,84251.0,84250.0,0.2937194]
[1742647475388,0.00096001,84251.0,84250.0,0.7023194]
[1742647475592,0.0318,84273.0,84270.0,0.1187112]
[1742647475782,0.24997388,84271.0,84270.0,0.5918712]
[1742647475984,0.24997388,84271.0,84270.0,0.5924712]
[1742647476190,0.36868368,84271.0,84270.0,0.5924712]
[1742647476687,0.40048368,84271.0,84270.0,0.5924712]
[1742647478798,0.40048368,84271.0,84270.0,0.6254712]
[1742647478998,0.40048368,84271.0,84270.0,0.6264712]
[1742647479200,0.1511898,84271.0,84270.0,0.6264712]
[1742647479499,0.1505098,84271.0,84270.0,0.6264712]
[1742647480405,0.1505098,84271.0,84270.0,0.2656712]
[1742647480702,0.1511898,84271.0,84270.0,0.2656712]
[1742647480903,0.1505098,84271.0,84270.0,0.2656712]
[1742647482205,0.1505098,84271.0,84270.0,0.2666712]
[1742647482401,0.1505098,84271.0,84270.0,0.2656712]
[1742647482601,0.1505098,84271.0,84270.0,0.1533112]
[1742647482794,0.1505098,84271.0,84270.0,0.2656712]
[1742647484599,0.1511898,84271.0,84270.0,0.2656712]
[1742647484797,0.1505098,84271.0,84270.0,0.2656712]
[1742647484997,0.1511898,84271.0,84270.0,0.2646712]
[1742647485197,0.1505098,84271.0,84270.0,0.2646712]
[1742647488102,0.1505098,84271.0,84270.0,0.0006]
[1742647488305,0.5120298,84271.0,84270.0,0.0006]
[1742647489305,0.5120298,84271.0,84270.0,0.0315]
[1742647492112,0.5120298,84271.0,84270.0,0.0006]
[1742647492709,0.5120298,84271.0,84270.0,0.0336]
[1742647495418,0.1512298,84271.0,84270.0,0.0336]
[1742647495607,0.5120298,84271.0,84270.0,0.0336]
[1742647497509,0.1512298,84271.0,84270.0,0.0336]
[1742647497710,0.5120298,84271.0,84270.0,0.0336]
[1742647504213,0.5446298,84271.0,84270.0,0.0336]
[1742647505221,0.0593598,84265.0,84257.0,0.21331207]
[1742647505517,0.0593598,84265.0,84262.0,0.00077801]
[1742647505518,0.1187211,84263.0,84262.0,0.00077801]
[1742647505824,0.1194011,84263.0,84262.0,0.00077801]
[1742647506016,0.30387644,84263.0,84262.0,0.00077801]
[1742647508318,0.66467644,84263.0,84262.0,0.00077801]
[1742647509223,0.30387644,84263.0,84262.0,0.00077801]
[1742647509425,0.66467644,84263.0,84262.0,0.00077801]
[1742647509624,0.66467644,84263.0,84262.0,0.00017801]
[1742647512024,0.0593688,84252.0,84245.0,0.57411207]
[1742647512225,0.98730541,84263.0,84245.0,0.57411207]
[1742647512226,0.1187451,84246.0,84245.0,0.57471207]
[1742647512530,0.1313174,84246.0,84245.0,0.57471207]
[1742647512827,0.24999415,84246.0,84245.0,0.57471207]
[1742647513019,0.61079415,84246.0,84245.0,0.21391207]
[1742647513220,0.67539415,84246.0,84245.0,0.21391207]
[1742647514024,0.67639415,84246.0,84245.0,0.21391207]
[1742647514724,0.67739415,84246.0,84245.0,0.0006]
[1742647515146,0.31659415,84246.0,84245.0,0.0006]
[1742647515335,0.67739415,84246.0,84245.0,0.0006]
[1742647516829,0.66558185,84246.0,84245.0,0.0006]
[1742647520726,0.30478185,84246.0,84245.0,0.0006]
[1742647520926,0.66558185,84246.0,84245.0,0.0006]
[1742647523533,0.1187479,84244.0,84243.0,8e-05]
[1742647523720,0.1194279,84244.0,84243.0,0.06438]
[1742647525229,0.1204279,84244.0,84243.0,0.06438]
[1742647526029,0.1214279,84244.0,84243.0,0.06438]
[1742647526536,0.1214279,84244.0,84243.0,0.1831293]
[1742647527333,0.1214279,84244.0,84243.0,0.06438]
[1742647529328,0.1532279,84244.0,84243.0,0.06438]
[1742647531232,0.1856279,84244.0,84243.0,0.06438]
[1742647538435,0.1856279,84244.0,84243.0,0.1831293]
[1742647540647,0.1532279,84244.0,84243.0,0.1831293]
[1742647540951,0.1214279,84244.0,84243.0,0.1831293]
[1742647541251,0.00268,84244.0,84243.0,0.1831293]
[1742647541440,0.002,84244.0,84243.0,0.1831293]
[1742647543749,0.002,84244.0,84243.0,0.19479125]
[1742647544134,0.1207479,84244.0,84243.0,0.19479125]
[1742647544337,0.1214279,84244.0,84243.0,0.19479125]
[1742647545441,0.1214279,84244.0,84243.0,0.1831293]
[1742647545642,0.1214279,84244.0,84243.0,0.46791393]
[1742647547252,0.1521279,84244.0,84243.0,0.46791393]
[1742647549652,0.1521279,84244.0,84243.0,0.1831293]
[1742647553560,0.1521279,84244.0,84243.0,0.19823916]
[1742647554343,0.1521279,84244.0,84243.0,0.19823935]
[1742647559364,0.1521279,84244.0,84243.0,0.19847618]
[1742647561771,0.1521279,84244.0,84243.0,0.48326081]
[1742647561772,0.1840279,84244.0,84243.0,0.48326081]
[1742647562567,0.1521279,84244.0,84243.0,0.48326081]
[1742647563261,0.1521279,84244.0,84243.0,0.48324904]
[1742647563462,0.1835279,84244.0,84243.0,0.48324904]
[1742647563862,0.1835279,84244.0,84243.0,0.84404904]
[1742647564765,0.1835279,84244.0,84243.0,0.55926441]
[1742647565665,0.1835279,84244.0,84243.0,0.19846441]
[1742647569073,0.1835279,84244.0,84243.0,0.1831293]
[1742647569277,0.1835279,84244.0,84243.0,0.19845749]
[1742647570879,0.1835279,84244.0,84243.0,0.19846289]
[1742647571870,0.1835279,84244.0,84243.0,0.31082289]
[1742647575882,0.1835279,84244.0,84243.0,0.31074289]
[1742647578574,0.1835279,84244.0,84243.0,0.31075438]
[1742647578975,0.1835279,84244.0,84243.0,0.32569903]
[1742647579785,0.1828479,84244.0,84243.0,0.31075438]
[1742647584088,0.1835279,84244.0,84243.0,0.31075438]
[1742647584284,0.1835279,84244.0,84243.0,0.31080346]
[1742647586275,0.06478,84244.0,84243.0,0.31080346]
[1742647586491,0.1828479,84244.0,84243.0,0.31080346]
[1742647586691,0.1828479,84244.0,84243.0,0.32575189]
[1742647587081,0.1835679,84244.0,84243.0,0.32575189]
[1742647588087,0.1835679,84244.0,84243.0,0.31080346]
[1742647589594,0.1835679,84244.0,84243.0,0.32575225]
[1742647590092,0.1835679,84244.0,84243.0,0.32575719]
[1742647590293,0.1828479,84244.0,84243.0,0.32575719]
[1742647593894,0.1828479,84244.0,84243.0,0.32576178]
[1742647603297,0.1828479,84244.0,84243.0,0.29356178]
[1742647603697,0.1835279,84244.0,84243.0,0.29356178]
[1742647604098,0.1828479,84244.0,84243.0,0.29356178]
[1742647604593,0.1828479,84244.0,84243.0,0.14970178]
[1742647604793,0.1835679,84244.0,84243.0,0.26206178]
[1742647605605,0.1835679,84244.0,84243.0,0.11296]
[1742647605906,0.1835679,84244.0,84243.0,0.2317093]
[1742647607297,0.1835679,84244.0,84243.0,0.2644093]
[1742647609893,0.1835679,84244.0,84243.0,0.47807294]
[1742647615303,0.1835679,84244.0,84243.0,0.50897294]
[1742647616905,0.03342,84244.0,84243.0,0.4120416]
[1742647617105,0.0327,84244.0,84243.0,0.5547016]
[1742647617299,0.1514479,84244.0,84243.0,0.5547016]
[1742647617696,0.1514479,84244.0,84243.0,0.56965111]
[1742647619515,0.1514479,84244.0,84243.0,0.56974944]
[1742647620010,0.1514479,84244.0,84243.0,0.3560858]
[1742647623311,0.1514479,84244.0,84243.0,0.64087211]
[1742647623814,0.1514479,84244.0,84243.0,0.64076774]
[1742647624505,0.0593593,84265.0,84253.0,0.1187352]
[1742647624703,0.1187118,84270.0,84269.0,0.1187126]
[1742647624908,0.2083656,84272.0,84271.0,0.1187098]
[1742647625213,0.32706912,84272.0,84271.0,0.1193098]
[1742647625398,0.2090456,84272.0,84271.0,0.1193098]
[1742647625914,0.2090456,84272.0,84271.0,0.13425931]
[1742647626916,0.2090456,84272.0,84271.0,0.0006]
[1742647627122,0.32770967,84272.0,84271.0,0.0006]
[1742647627304,0.32770967,84272.0,84266.0,0.21347295]
[1742647627305,0.1187155,84267.0,84266.0,0.21347295]
[1742647627611,0.1194755,84267.0,84266.0,0.44510905]
[1742647628310,0.1829755,84267.0,84266.0,0.44510905]
[1742647628517,0.1829755,84267.0,84266.0,0.44610905]
[1742647628710,0.1829755,84267.0,84266.0,0.44710905]
[1742647630314,0.1829755,84267.0,84266.0,0.2336361]
[1742647632215,0.1829755,84267.0,84266.0,0.24853726]
[1742647637015,0.1829755,84267.0,84266.0,0.27983726]
[1742647639002,0.1829755,84267.0,84266.0,0.24853726]
[1742647639716,0.1829755,84267.0,84266.0,0.27983726]
[1742647639917,0.1829755,84267.0,84266.0,0.2649361]
[1742647640312,0.1829755,84267.0,84266.0,0.11492]
[1742647640512,0.5437755,84267.0,84266.0,0.11432]
[1742647641014,0.5437755,84267.0,84266.0,0.01692181]
[1742647641511,0.5437755,84267.0,84266.0,0.00276]
[1742647641716,0.5437755,84267.0,84266.0,0.002]
[1742647642113,0.66244662,84267.0,84266.0,0.002]
[1742647657938,0.66244662,84267.0,84266.0,0.0327]
[1742647660335,0.66244662,84267.0,84266.0,0.064]
[1742647683258,0.66244662,84267.0,84266.0,0.063]
[1742647684463,0.66244662,84267.0,84266.0,0.062]
[1742647684662,0.66344662,84267.0,84266.0,0.062]
[1742647685367,0.66444662,84267.0,84266.0,0.062]
[1742647688360,0.30364662,84267.0,84266.0,0.062]
[1742647688564,0.60094662,84267.0,84266.0,0.062]
[1742647689167,0.63344662,84267.0,84266.0,0.062]
[1742647690261,0.63244662,84267.0,84266.0,0.062]
[1742647690465,0.63144662,84267.0,84266.0,0.062]
[1742647690956,0.66364662,84267.0,84266.0,0.062]
[1742647698764,0.30284662,84267.0,84266.0,0.062]
[1742647698966,0.66364662,84267.0,84266.0,0.0626]
[1742647699165,0.66364662,84267.0,84266.0,0.062]
[1742647705376,0.66564662,84267.0,84266.0,0.062]
[1742647705972,0.66564662,84267.0,84266.0,0.07695608]
[1742647706169,0.66564662,84267.0,84266.0,0.07755608]
[1742647707878,0.66464662,84267.0,84266.0,0.07755608]
[1742647708477,0.66564662,84267.0,84266.0,0.07755608]
[1742647709074,0.66464662,84267.0,84266.0,0.07755608]
[1742647711174,0.66364662,84267.0,84266.0,0.07755608]
[1742647712483,0.66364662,84267.0,84266.0,0.0626]
[1742647712680,0.66464662,84267.0,84266.0,0.062]
[1742647712883,0.66564662,84267.0,84266.0,0.062]
[1742647713387,0.66464662,84267.0,84266.0,0.062]
[1742647713585,0.66564662,84267.0,84266.0,0.062]
[1742647714474,0.66464662,84267.0,84266.0,0.062]
[1742647714687,0.66564662,84267.0,84266.0,0.062]
[1742647716991,0.66464662,84267.0,84266.0,0.0626]
[1742647717994,0.66364662,84267.0,84266.0,0.0626]
[1742647726591,0.67566335,84267.0,84266.0,0.0626]
[1742647727790,0.67566335,84267.0,84266.0,0.062]
[1742647729601,0.67566335,84267.0,84266.0,0.0626]
[1742647732803,0.67566335,84267.0,84266.0,0.062]
[1742647733794,0.67566335,84267.0,84266.0,0.0626]
[1742647733992,0.67566335,84267.0,84266.0,0.062]
[1742647734199,0.19619223,84267.0,84266.0,0.0626]
[1742647737292,0.19619223,84267.0,84266.0,0.27607295]
[1742647739184,0.19619223,84267.0,84266.0,0.0626]
[1742647764909,0.55699223,84267.0,84266.0,0.0626]
[1742647775713,0.19619223,84267.0,84266.0,0.0626]
[1742647775919,0.55699223,84267.0,84266.0,0.0626]
[1742647786126,0.19619223,84267.0,84266.0,0.0626]
[1742647786333,0.55699223,84267.0,84266.0,0.0626]
[1742647804333,0.55699223,84267.0,84266.0,0.0313]
[1742647804627,0.55699223,84267.0,84263.0,0.03337801]
[1742647804628,0.1187197,84264.0,84263.0,0.03337801]
[1742647804936,0.11959971,84264.0,84263.0,0.00077801]
[1742647805129,0.21879971,84264.0,84263.0,0.00077801]
[1742647805332,0.18585113,84264.0,84263.0,0.13119762]
[1742647805533,0.18585113,84264.0,84263.0,0.11949911]
[1742647805534,0.06718001,84264.0,84263.0,0.11949911]
[1742647805836,0.3608,84277.0,84267.0,0.1187144]
[1742647806135,0.1496126,84269.0,84268.0,0.14342]
[1742647806339,0.1496126,84269.0,84268.0,0.17482]
[1742647806639,0.15021261,84269.0,84268.0,0.17542]
[1742647806839,0.18061261,84269.0,84268.0,0.17542]
[1742647808843,0.00060001,84269.0,84268.0,0.6549341]
[1742647809044,0.0322,84276.0,84273.0,0.1187063]
[1742647809342,0.1187064,84274.0,84273.0,0.00072]
[1742647809644,0.0322,84276.0,84275.0,0.1187042]
[1742647809941,0.1187056,84274.0,84273.0,0.18425315]
[1742647810128,0.1194256,84274.0,84273.0,0.18425315]
[1742647810327,0.1187056,84274.0,84273.0,0.18353315]
[1742647810539,0.1187056,84274.0,84273.0,0.12494035]
[1742647810746,0.1187056,84274.0,84273.0,0.11232]
[1742647811134,0.1187056,84274.0,84273.0,0.12400423]
[1742647811444,0.1509056,84274.0,84273.0,0.11232]
[1742647811637,0.1509056,84274.0,84273.0,0.32608877]
[1742647814045,0.1509056,84274.0,84273.0,0.44479577]
[1742647814246,0.1509056,84274.0,84273.0,0.32608877]
[1742647814945,0.1509056,84274.0,84273.0,0.11232]
[1742647815357,0.1516256,84274.0,84273.0,0.11304]
[1742647815652,0.03292,84274.0,84273.0,0.231747]
[1742647815842,0.0322,84274.0,84273.0,0.231747]
[1742647816243,0.1509056,84274.0,84273.0,0.231747]
[1742647816440,0.1517056,84274.0,84273.0,0.231747]
[1742647817543,0.00017801,84280.0,84279.0,0.1186986]
[1742647817748,0.11887521,84280.0,84279.0,0.2319386]
[1742647817949,0.11983522,84280.0,84279.0,0.2319386]
[1742647818844,0.15093522,84280.0,84279.0,0.2319386]
[1742647819041,0.03223802,84280.0,84279.0,0.5927386]
[1742647819247,0.00113802,84280.0,84279.0,0.5927386]
[1742647821541,0.00113802,84280.0,84279.0,0.6236386]
[1742647822748,0.03163802,84280.0,84279.0,0.6236386]
[1742647823349,0.1186922,84284.0,84283.0,0.1780362]
[1742647823550,0.1199722,84284.0,84283.0,0.1793162]
[1742647824039,0.1502722,84284.0,84283.0,0.1793162]
[1742647825753,0.1522722,84284.0,84283.0,0.1793162]
[1742647826852,0.1522722,84284.0,84283.0,0.2100162]
[1742647827050,0.1522722,84284.0,84283.0,0.2421162]
[1742647829663,0.03358,84284.0,84283.0,0.2421162]
[1742647830160,0.1522715,84284.0,84283.0,0.2421162]
[1742647830367,0.1829715,84284.0,84283.0,0.2421162]
[1742647830551,0.06428,84284.0,84283.0,0.2421162]
[1742647831051,0.1829715,84284.0,84283.0,0.2421162]
[1742647832250,0.06428,84284.0,84283.0,0.2421162]
[1742647833354,0.1829715,84284.0,84283.0,0.2421162]
[1742647833857,0.1186817,84291.0,84290.0,0.1186817]
[1742647834161,0.1186817,84291.0,84290.0,0.5934017]
[1742647834351,0.1186817,84291.0,84290.0,0.2326017]
[1742647834660,0.1186817,84291.0,84290.0,0.2969017]
[1742647835158,0.1216817,84291.0,84290.0,0.2969017]
[1742647835664,0.1246817,84291.0,84290.0,0.2969017]
[1742647836362,0.1246817,84291.0,84290.0,0.30882018]
[1742647837058,0.1909817,84291.0,84290.0,0.2969017]
[1742647838748,0.0723,84291.0,84290.0,0.2969017]
[1742647839362,0.1909817,84291.0,84290.0,0.2969017]
[1742647840368,0.0723,84291.0,84290.0,0.2969017]
[1742647840755,0.1909817,84291.0,84290.0,0.2969017]
[1742647840959,0.1909817,84291.0,84290.0,0.30859359]
[1742647841858,0.1909817,84291.0,84290.0,0.2969017]
[1742647843964,0.1909817,84291.0,84290.0,0.17822]
[1742647844461,0.1909817,84291.0,84290.0,0.2969031]
[1742647845655,0.1909817,84291.0,84290.0,0.17822]
[1742647852758,0.1909817,84291.0,84290.0,0.17846]
[1742647857576,0.1909817,84291.0,84290.0,0.2971431]
[1742647861373,0.1909817,84291.0,84290.0,0.17846]
[1742647867282,0.1909817,84291.0,84290.0,0.2971431]
[1742647868086,0.006,84291.0,84290.0,0.2971431]
[1742647868265,0.26733156,84310.0,84290.0,0.2971431]
[1742647868266,0.1186791,84294.0,84293.0,0.1186769]
[1742647868578,0.1186791,84294.0,84293.0,0.1203169]
[1742647868777,0.1805791,84294.0,84293.0,0.1203169]
[1742647869370,0.1805791,84294.0,84293.0,0.1841169]
[1742647869770,0.1835791,84294.0,84293.0,0.1841169]
[1742647869965,0.1875791,84294.0,84293.0,0.1841169]
[1742647874083,0.1875791,84294.0,84293.0,0.39741345]
[1742647875479,0.0689,84294.0,84293.0,0.39741345]
[1742647875872,0.1875774,84294.0,84293.0,0.39741345]
[1742647877184,0.1875774,84294.0,84293.0,0.1841169]
[1742647883086,0.1875774,84294.0,84293.0,0.2968369]
[1742647883988,0.2178774,84294.0,84293.0,0.2968369]
[1742647887587,0.0992,84294.0,84293.0,0.2968369]
[1742647887890,0.2178774,84294.0,84293.0,0.2968369]
[1742647889791,0.0992,84294.0,84293.0,0.2968369]
[1742647890177,0.2178774,84294.0,84293.0,0.2968369]
[1742647890380,0.0992,84294.0,84293.0,0.2968369]
[1742647892875,0.2178774,84294.0,84293.0,0.2968369]
[1742647893280,0.0992,84294.0,84293.0,0.2968369]
[1742647894987,0.2178774,84294.0,84293.0,0.2968369]
[1742647895187,0.0992,84294.0,84293.0,0.2967169]
[1742647897281,0.2178774,84294.0,84293.0,0.2967169]
[1742647898088,0.0992,84294.0,84293.0,0.2967169]
[1742647898294,0.2178774,84294.0,84293.0,0.2967169]
[1742647898791,0.0992,84294.0,84293.0,0.2967169]
[1742647898992,0.2178774,84294.0,84293.0,0.2967169]
[1742647899192,0.0992,84294.0,84293.0,0.58174193]
[1742647899894,0.2178774,84294.0,84293.0,0.58174193]
[1742647901997,0.0992,84294.0,84293.0,0.58174193]
[1742647902195,0.2178774,84294.0,84293.0,0.58174193]
[1742647902492,0.0992,84294.0,84293.0,0.2967169]
[1742647903589,0.2178774,84294.0,84293.0,0.2967169]
[1742647905202,0.0992,84294.0,84293.0,0.2967169]